fUSD/lending_fUSD_20251012
["ID","MTS","AMOUNT","RATE_DAILY","PERIOD"]
[390946121,1760229040882,-150.0,0.00014974,2]
[390946123,1760229040892,-150.0,0.00014974,2]
[390946125,1760229040901,-150.0,0.00014974,2]
[390946127,1760229040910,-150.0,0.00014974,2]
[390946129,1760229040920,-666.0,0.00014982,2]
[390946131,1760229040930,-428.44426241,0.00014982,2]
[390946133,1760229040939,-3463.2103056,0.00014983,2]
[390946135,1760229040948,-15847.5140636,0.00014983,2]
[390946137,1760229040959,-89937.289395,0.00014983,2]
[390946139,1760229040969,-151.0,0.00014983,2]
[390946141,1760229040979,-241.506076,0.00014983,2]
[390946143,1760229040988,-151.0,0.00014983,2]
[390946145,1760229040998,-151.0,0.00014983,2]
[390946147,1760229041007,-267.137305,0.00014983,2]
[390946149,1760229041017,-267.137305,0.00014983,2]
[390946151,1760229041026,-267.137305,0.00014983,2]
[390946153,1760229041036,-267.137305,0.00014983,2]
[390946155,1760229041046,-151.0,0.00014983,2]
[390946157,1760229041055,-151.0,0.00014983,2]
[390946159,1760229041066,-151.0,0.00014983,2]
[390946161,1760229041076,-151.0,0.00014983,2]
[390946163,1760229041087,-2164.64793656,0.00014986,2]
[390946165,1760229041096,-176.43886975,0.0001499,2]
[390946167,1760229041106,-176.43886975,0.0001499,2]
[390946169,1760229041115,-176.43886975,0.0001499,2]
[390946171,1760229041124,-666.0,0.00014999,2]
[390946173,1760229041133,-666.0,0.00014999,2]
[390946175,1760229041142,-3867.0,0.00014999,2]
[390946177,1760229041151,-817.66,0.00014999,2]
[390946179,1760229041160,-1004.14,0.00014999,15]
[390946181,1760229041169,-151.0,0.00014999,2]
[390946183,1760229041179,-5014.92,0.00014999,2]
[390946185,1760229041188,-151.0,0.00014999,2]
[390946187,1760229041197,-267.137305,0.00014999,2]
[390946189,1760229041206,-267.137305,0.00014999,2]
[390946191,1760229041216,-267.137305,0.00014999,2]
[390946193,1760229041226,-267.137305,0.00014999,2]
[390946195,1760229041236,-500.0,0.00014999,2]
[390946197,1760229041246,-145224.12350487,0.00015,2]
[390946199,1760229041258,-44099.74313009,0.00015,2]
[390946201,1760229041270,-3779.62863851,0.00015,2]
[390946203,1760229041281,-1020.15400017,0.00015,2]
[390946206,1760229041292,-25249.97350497,0.00015,2]
[390946209,1760229041314,-1000.0,0.00015,2]
[390946211,1760229041327,-452.20582707,0.00015,2]
[390946453,1760229043749,-1643.38690854,0.000144,2]
[390946455,1760229043760,-4207.15100464,0.00014733,2]
[390946457,1760229043771,-188.37498587,0.00014947,2]
[390946459,1760229043782,-617.4,0.00014947,2]
[390946676,1760229045878,-4207.15100464,0.00014789,2]
[390946680,1760229045900,-2599.22501413,0.00014947,2]
[390946682,1760229045910,-150.0,0.00014974,2]
[390946684,1760229045919,-46474.07702242,0.00015,2]
[390946704,1760229046101,-2843.46094965,0.00015,2]
[390946707,1760229046125,-144155.33374752,0.00015,2]
[390949378,1760229121054,500.0,0.00011986,2]
[390949390,1760229124112,600.0,0.00011986,2]
[390949400,1760229153745,-300.67245955,0.00013356,2]
[390949456,1760229589698,179.82,6.934e-05,2]
[390949457,1760229589923,179.82,8.668e-05,2]
[390949458,1760229590075,179.82,0.00010402,2]
[390949459,1760229590264,179.82,0.00012135,2]
[390949480,1760230232013,-299.32754045,0.00013356,2]
[390949481,1760230232023,-759.22,0.00013699,2]
[390949482,1760230232033,-300.0,0.00013718,2]
[390949483,1760230232048,-300.0,0.00013718,2]
[390949484,1760230232058,-358.8207928,0.00013718,2]
[390949485,1760230232067,-250.0,0.00013784,7]
[390949486,1760230232077,-1021.05,0.00013849,2]
[390949487,1760230232088,-157.44,0.00013851,2]
[390949488,1760230232098,-476.16,0.00013853,2]
[390949489,1760230232107,-657.97,0.00013862,2]
[390949490,1760230232118,-179.82,0.00013869,2]
[390949491,1760230232127,-223.26,0.00014,21]
[390949492,1760230232137,-1200.0,0.00014399,2]
[390949493,1760230232146,-784.8481,0.000144,2]
[390949494,1760230232155,-168.0,0.00014439,2]
[390949495,1760230232164,-168.0,0.00014484,2]
[390949496,1760230232173,-257.91778498,0.00014537,2]
[390949497,1760230232183,-3291.217205,0.00014546,2]
[390949498,1760230232192,-516.07139184,0.00014546,2]
[390949499,1760230232202,-1000.0,0.000146,2]
[390949500,1760230232211,-737.24914447,0.00014634,2]
[390949501,1760230232220,-707.72259075,0.00014638,2]
[390949502,1760230232230,-322.6107,0.00014691,2]
[390949503,1760230232239,-364.83746168,0.00014691,2]
[390949504,1760230232249,-300.0,0.00014692,2]
[390949505,1760230232258,-194.1614718,0.00014692,2]
[390949506,1760230232267,-1395.19350834,0.00014692,2]
[390949507,1760230232277,-150.0,0.00014696,2]
[390949508,1760230232286,-168.0,0.00014699,2]
[390949509,1760230232295,-595.14547497,0.00014699,2]
[390949510,1760230232304,-1064.70299801,0.000147,2]
[390949511,1760230232315,-1094.33431483,0.000147,2]
[390949513,1760230232324,-1125.67776648,0.000147,2]
[390949514,1760230232333,-1111.40612878,0.000147,2]
[390949515,1760230232343,-1034.67116155,0.000147,2]
[390949516,1760230232353,-1097.62506273,0.000147,2]
[390949517,1760230232362,-1079.41117136,0.000147,2]
[390949518,1760230232372,-1112.50437919,0.000147,2]
[390949519,1760230232382,-1101.75460703,0.000147,2]
[390949520,1760230232391,-655.20984376,0.000147,2]
[390949522,1760230232404,-358.68890173,0.000147,2]
[390949524,1760230232413,-1069.75184561,0.000147,2]
[390949525,1760230232422,-1008.68052973,0.000147,2]
[390949526,1760230232777,-1089.60988997,0.000147,2]
[390949527,1760230232804,-1055.23924111,0.000147,2]
[390949528,1760230232814,-1103.87055666,0.000147,2]
[390949529,1760230232823,-1028.70904375,0.000147,2]
[390949530,1760230232833,-1027.8572098,0.000147,2]
[390949531,1760230232844,-1364.0434533,0.000147,2]
[390949532,1760230232854,-168.0,0.0001471,2]
[390949533,1760230232863,-157.44,0.00014716,2]
[390949534,1760230232873,-500.0,0.00014726,2]
[390949535,1760230232882,-600.0,0.00014726,2]
[390949536,1760230232891,-168.0,0.00014738,2]
[390949537,1760230232901,-150.0,0.00014759,2]
[390949538,1760230232910,-168.0,0.00014793,2]
[390949539,1760230232919,-1676.34300525,0.000148,2]
[390949540,1760230232928,-1676.34300516,0.00014811,2]
[390949541,1760230232938,-1676.34300516,0.00014822,2]
[390949542,1760230232947,-1676.34300516,0.00014833,2]
[390949543,1760230232956,-1676.34300516,0.00014844,2]
[390949544,1760230232965,-1676.34300516,0.00014856,2]
[390949545,1760230232975,-323.75569101,0.00014857,2]
[390949546,1760230232984,-1676.34300516,0.00014867,2]
[390949547,1760230232993,-3510.605,0.00014867,2]
[390949548,1760230233003,-178.76705281,0.00014867,2]
[390949549,1760230233012,-1676.34300516,0.00014878,2]
[390949550,1760230233022,-500.0,0.0001488,2]
[390949551,1760230233032,-200.0,0.0001488,2]
[390949552,1760230233044,-1676.34300516,0.00014889,2]
[390949553,1760230233054,-500.0,0.00014899,2]
[390949554,1760230233064,-176.65473007,0.00014899,2]
[390949555,1760230233074,-5000.0,0.00014899,2]
[390949556,1760230233086,-22959.92646012,0.000149,2]
[390949557,1760230233104,-14950.04114838,0.000149,2]
[390949558,1760230233117,-5517.23571349,0.000149,2]
[390949559,1760230233129,-3201.16600864,0.000149,2]
[390949560,1760230233140,-1931.32341625,0.000149,2]
[390949561,1760230233153,-1644.27585547,0.000149,2]
[390949562,1760230233165,-910.22854128,0.000149,2]
[390949653,1760230239094,-228.88989728,0.00014695,2]
[390949656,1760230239109,-500.0,0.00014695,2]
[390949658,1760230239127,-332.95411686,0.00014695,2]
[390949660,1760230239143,-167.04588314,0.00014695,2]
[390949663,1760230239157,-500.0,0.00014695,2]
[390949665,1760230239170,-216.57211418,0.00014695,2]
[390949680,1760230239309,-283.42788582,0.00014695,2]
[390949682,1760230239319,-500.0,0.00014695,2]
[390949684,1760230239329,-500.0,0.00014695,2]
[390949686,1760230239338,-500.0,0.00014695,2]
[390949688,1760230239347,-222.17431198,0.00014695,2]
[390949691,1760230239362,-277.82568802,0.00014695,2]
[390949693,1760230239372,-119.09209628,0.00014695,2]
[390949696,1760230239398,-515.52354221,0.00014695,2]
[390949699,1760230239408,-500.0,0.00014695,2]
[390949701,1760230239418,-500.0,0.00014695,2]
[390949703,1760230239427,-673.04304853,0.000149,2]
[390949769,1760230240067,-543.57890316,0.000149,2]
[390949775,1760230240123,-666.0,0.000149,2]
[390949821,1760230240543,-615.78,0.000149,2]
[390949824,1760230240565,-1942.40090468,0.000149,2]
[390949826,1760230240574,-8414.30200928,0.000149,2]
[390949828,1760230240583,-76023.73,0.000149,2]
[390949830,1760230240592,-171.4028112,0.000149,2]
[390949832,1760230240603,-1676.34300516,0.000149,2]
[390949834,1760230240613,-326.8050031,0.000149,2]
[390949836,1760230240622,-226.06645983,0.000149,2]
[390949838,1760230240631,-177.22980646,0.000149,2]
[390949840,1760230240640,-168.0,0.00014939,2]
[390949842,1760230240649,-500.0,0.0001497,2]
[390949844,1760230240658,-500.0,0.00014973,2]
[390949846,1760230240667,-500.0,0.00014973,2]
[390949848,1760230240676,-500.0,0.00014973,2]
[390949849,1760230240686,-500.0,0.00014973,2]
[390949851,1760230240695,-548.85051864,0.00014973,2]
[390949853,1760230240704,-500.0,0.00014973,2]
[390949855,1760230240713,-500.0,0.00014973,2]
[390949857,1760230240722,-500.0,0.00014973,2]
[390949859,1760230240731,-500.0,0.00014973,2]
[390949861,1760230240740,-343.17814072,0.00014973,2]
[390949863,1760230240750,-500.0,0.00014973,2]
[390949865,1760230240759,-500.0,0.00014973,2]
[390949867,1760230240769,-500.0,0.00014973,2]
[390949869,1760230240778,-500.0,0.00014973,2]
[390949871,1760230240788,-500.0,0.00014973,2]
[390949873,1760230240797,-311.74346457,0.00014973,2]
[390949875,1760230240807,-409.0186696,0.00014973,2]
[390949877,1760230240815,-494.24867577,0.00014973,2]
[390949879,1760230240824,-223.92658699,0.00014973,2]
[390949881,1760230240833,-500.0,0.00014973,2]
[390949883,1760230240842,-500.0,0.00014973,2]
[390949886,1760230240852,-471.79906783,0.00014973,2]
[390949888,1760230240861,-500.24728439,0.00014973,2]
[390949889,1760230240871,-604.84987033,0.00014973,2]
[390949891,1760230240880,-163.39750219,0.00014973,2]
[390949893,1760230240889,-163.47778567,0.00014973,2]
[390949895,1760230240898,-156.7365958,0.00014973,2]
[390949898,1760230240908,-150.0,0.00014974,2]
[390949899,1760230240919,-150.0,0.00014974,2]
[390949902,1760230240928,-178.62162452,0.00014974,2]
[390949904,1760230240937,-150.0,0.00014974,2]
[390949906,1760230240947,-150.0,0.00014974,2]
[390949908,1760230240956,-150.0,0.00014974,2]
[390949910,1760230240965,-150.0,0.00014974,2]
[390949912,1760230240974,-150.0,0.00014974,2]
[390949914,1760230240982,-150.0,0.00014974,2]
[390949916,1760230240991,-150.0,0.00014974,2]
[390949918,1760230241000,-263.6981324,0.00014974,2]
[390949920,1760230241009,-150.0,0.00014974,2]
[390949922,1760230241018,-500.0,0.00014974,2]
[390949924,1760230241027,-500.0,0.00014974,2]
[390949926,1760230241040,-150.0,0.00014974,2]
[390949928,1760230241049,-150.0,0.00014974,2]
[390949930,1760230241058,-150.0,0.00014974,2]
[390949932,1760230241067,-500.0,0.00014974,2]
[390949934,1760230241077,-576.0,0.00014974,2]
[390949936,1760230241086,-150.88185691,0.00014974,2]
[390949938,1760230241095,-150.0,0.00014974,2]
[390949940,1760230241105,-150.0,0.00014974,2]
[390949942,1760230241114,-500.0,0.00014974,2]
[390949943,1760230241123,-150.0,0.00014974,2]
[390949945,1760230241132,-150.0,0.00014974,2]
[390949947,1760230241142,-200.0,0.00014974,2]
[390949949,1760230241151,-500.0,0.00014974,2]
[390949951,1760230241160,-500.0,0.00014974,2]
[390949953,1760230241169,-83221.5868869,0.0001499,2]
[390949955,1760230241178,-6953.140628,0.0001499,2]
[390949957,1760230241187,-298.855334,0.0001499,2]
[390949959,1760230241196,-3397.7540096,0.0001499,2]
[390949961,1760230241205,-172.4230882,0.0001499,2]
[390949963,1760230241214,-3510.0,0.00014999,2]
[390949965,1760230241224,-150.0,0.00014999,2]
[390949967,1760230241233,-500.0,0.00014999,2]
[390949969,1760230241241,-336390.99594847,0.00015,2]
[390949972,1760230241253,-1315.65143864,0.00015,2]
[390949974,1760230241264,-351.81,0.00015,2]
[390949977,1760230241286,-124856.77656674,0.00015,2]
[390949979,1760230241296,-844.34473846,0.00015,2]
[390949982,1760230241307,-927.740244,0.00015,2]
[390950156,1760230242989,-1382.63261326,0.000149,2]
[390950158,1760230242999,-27795.45779809,0.00015,2]
[390950477,1760230246069,-192.57685326,0.00014999,2]
[390950479,1760230246078,-2412.85871168,0.00015,2]
[390950482,1760230246090,-2992.2632824,0.00015,2]
[390950484,1760230246101,-516.6300001,0.00015,2]
[390950487,1760230246127,-12053.99667039,0.00015,2]
[390950494,1760230246185,-1032.96100502,0.00015,2]
[390950507,1760230246293,-17301.61481829,0.00015,2]
[390950509,1760230246304,-7103.45388427,0.00015,2]
[390952595,1760230267552,500.0,0.00011986,2]
[390952754,1760230272666,500.0,0.00011986,2]
[390952920,1760230590784,953.22425654,0.0001495,120]
[390953242,1760231432220,-500.0,0.00013356,2]
[390953243,1760231432230,-195.0,0.00013788,2]
[390953244,1760231432240,-2751.0,0.00013825,2]
[390953245,1760231432250,-413.97,0.00013885,2]
[390953246,1760231432264,-250.0,0.00014015,2]
[390953247,1760231432273,-1489.652773,0.00014132,2]
[390953248,1760231432282,-182.66281573,0.00014203,2]
[390953249,1760231432292,-205.86,0.00014395,2]
[390953250,1760231432301,-150.0,0.000144,2]
[390953251,1760231432311,-174.37,0.000144,2]
[390953252,1760231432320,-947.64,0.000144,2]
[390953253,1760231432330,-276.98,0.000144,2]
[390953254,1760231432339,-1207.48,0.00014441,2]
[390953255,1760231432349,-474.4,0.00014441,2]
[390953256,1760231432358,-474.4,0.00014441,2]
[390953257,1760231432367,-405.67419149,0.00014578,2]
[390953259,1760231432733,-546.25,0.00014578,2]
[390953260,1760231432743,-175.9,0.00014578,2]
[390953261,1760231432753,-546.25,0.00014578,2]
[390953262,1760231432762,-175.9,0.00014578,2]
[390953263,1760231432771,-546.25,0.00014578,2]
[390953264,1760231432781,-546.25,0.00014578,2]
[390953265,1760231432790,-352.01852171,0.0001463,2]
[390953266,1760231432799,-294.0,0.0001463,2]
[390953267,1760231432808,-351.64,0.00014648,2]
[390953268,1760231432818,-455.37,0.00014648,2]
[390953269,1760231432827,-870.49059561,0.00014665,2]
[390953270,1760231432836,-150.0,0.00014682,2]
[390953271,1760231432845,-322.6107,0.00014683,2]
[390953272,1760231432854,-500.0,0.00014683,2]
[390953273,1760231432863,-4400.48518906,0.00014683,2]
[390953274,1760231432872,-200.0,0.00014683,2]
[390953275,1760231432882,-151.0,0.00014683,2]
[390953276,1760231432891,-200.0,0.00014683,2]
[390953277,1760231432900,-151.0,0.00014683,2]
[390953278,1760231432911,-179.55548766,0.00014683,2]
[390953279,1760231432921,-601.3376128,0.00014683,2]
[390953280,1760231432931,-257.91778498,0.00014683,2]
[390953281,1760231432940,-195.0,0.00014692,2]
[390953282,1760231432949,-300.0,0.00014692,2]
[390953283,1760231432959,-250.0,0.00014692,2]
[390953285,1760231432968,-195.0,0.00014692,2]
[390953286,1760231432978,-150.0,0.00014692,2]
[390953287,1760231432987,-224.71429032,0.00014692,2]
[390953288,1760231432996,-784.50633351,0.00014692,2]
[390953289,1760231433006,-2000.0,0.00014692,2]
[390953290,1760231433015,-250.0,0.00014692,2]
[390953291,1760231433024,-195.0,0.00014692,2]
[390953292,1760231433034,-843.48581212,0.00014699,2]
[390953293,1760231433044,-500.0,0.00014726,2]
[390953294,1760231433062,-31.87729962,0.00014726,2]
[390953299,1760231434000,-468.12270038,0.00014726,2]
[390953300,1760231434011,-1425.0,0.00014737,2]
[390953301,1760231434021,-301.79,0.00014755,2]
[390953302,1760231434030,-650.33605202,0.00014757,2]
[390953303,1760231434040,-714.0,0.00014776,2]
[390953304,1760231434049,-1000.0,0.000148,2]
[390953305,1760231434059,-300.0,0.000148,2]
[390953306,1760231434069,-150.0,0.000148,2]
[390953307,1760231434078,-182.66281573,0.000148,2]
[390953308,1760231434087,-378.0,0.00014812,2]
[390953309,1760231434096,-511.0,0.00014815,2]
[390953310,1760231434106,-600.0,0.00014815,2]
[390953311,1760231434115,-286.0,0.00014815,2]
[390953312,1760231434125,-586.0,0.00014815,2]
[390953313,1760231434134,-150.0,0.00014826,2]
[390953314,1760231434143,-2125.0,0.0001484,2]
[390953315,1760231434153,-456.0,0.00014864,2]
[390953316,1760231434163,-500.0,0.0001488,2]
[390953317,1760231434172,-200.0,0.0001488,2]
[390953318,1760231434181,-356.73260657,0.00014887,2]
[390953319,1760231434191,-500.0,0.00014897,2]
[390953320,1760231434201,-459.02252114,0.00014897,2]
[390953321,1760231434210,-500.0,0.00014897,2]
[390953322,1760231434219,-195.41645866,0.00014898,2]
[390953323,1760231434229,-198.27193272,0.00014898,2]
[390953324,1760231434238,-3491.33246568,0.00014898,2]
[390953325,1760231434247,-1186.70962436,0.00014898,2]
[390953326,1760231434273,-2304.6228413,0.00014898,2]
[390953327,1760231434282,-3491.33246566,0.00014898,2]
[390953328,1760231434291,-3491.33246566,0.00014899,2]
[390953329,1760231434301,-3491.33246566,0.00014899,2]
[390953330,1760231434310,-195.41645866,0.00014899,2]
[390953331,1760231434319,-198.27193272,0.00014899,2]
[390953332,1760231434328,-3491.33246566,0.00014899,2]
[390953333,1760231434337,-5000.0,0.00014899,2]
[390953334,1760231434346,-3491.33246566,0.00014899,2]
[390953335,1760231434355,-3491.33246566,0.000149,2]
[390953336,1760231434364,-3491.33246566,0.000149,2]
[390953337,1760231434379,-2808.484,0.000149,2]
[390953338,1760231434390,-55555.0,0.000149,2]
[390953339,1760231434400,-156.35541435,0.000149,2]
[390953340,1760231434411,-1.20868975,0.000149,2]
[390953341,1760231438057,-228.88989728,0.00014897,2]
[390953342,1760231438067,-120.61010272,0.000149,2]
[390953521,1760231440178,-156.35541435,0.000149,2]
[390953523,1760231440190,-195.41645866,0.000149,2]
[390953525,1760231440199,-198.27193272,0.000149,2]
[390953527,1760231440208,-223.05193355,0.000149,2]
[390953529,1760231440217,-15.40743187,0.000149,2]
[390953538,1760231440288,-2186.62771226,0.000149,2]
[390953540,1760231440297,-3491.33246566,0.000149,2]
[390953542,1760231440306,-169.53066048,0.000149,2]
[390953544,1760231440315,-224.21324173,0.000149,2]
[390953546,1760231440323,-217.87000206,0.000149,2]
[390953548,1760231440332,-528.91260207,0.000149,2]
[390953550,1760231440342,-1425.0,0.00014916,2]
[390953552,1760231440352,-1425.0,0.00014929,2]
[390953554,1760231440361,-16562.0,0.00014959,2]
[390953556,1760231440370,-18718.0,0.00014959,2]
[390953558,1760231440383,-1000.0,0.00014965,2]
[390953560,1760231440391,-500.0,0.00014973,2]
[390953562,1760231440401,-500.0,0.00014973,2]
[390953564,1760231440411,-500.0,0.00014973,2]
[390953566,1760231440421,-160.2798425,0.00014973,2]
[390953568,1760231440431,-500.0,0.00014973,2]
[390953570,1760231440440,-500.0,0.00014973,2]
[390953572,1760231440449,-500.0,0.00014973,2]
[390953574,1760231440460,-500.0,0.00014973,2]
[390953576,1760231440469,-500.0,0.00014973,2]
[390953578,1760231440478,-500.0,0.00014973,2]
[390953580,1760231440487,-500.0,0.00014973,2]
[390953582,1760231440496,-500.0,0.00014973,2]
[390953584,1760231440506,-500.0,0.00014973,2]
[390953586,1760231440515,-150.0,0.00014974,2]
[390953588,1760231440524,-150.0,0.00014974,2]
[390953590,1760231440533,-500.0,0.00014974,2]
[390953592,1760231440543,-150.0,0.00014974,2]
[390953594,1760231440552,-500.0,0.00014974,2]
[390953596,1760231440561,-500.0,0.00014974,2]
[390953598,1760231440570,-150.0,0.00014974,2]
[390953600,1760231440579,-500.0,0.00014974,2]
[390953603,1760231440588,-552.0,0.00014974,2]
[390953606,1760231440597,-150.0,0.00014974,2]
[390953609,1760231440606,-150.0,0.00014974,2]
[390953612,1760231440615,-150.0,0.00014974,2]
[390953615,1760231440623,-150.0,0.00014974,2]
[390953617,1760231440632,-150.0,0.00014974,2]
[390953619,1760231440641,-150.0,0.00014974,2]
[390953621,1760231440650,-150.0,0.00014974,2]
[390953623,1760231440661,-150.0,0.00014974,2]
[390953625,1760231440671,-150.0,0.00014974,2]
[390953627,1760231440680,-250.0,0.00014974,2]
[390953629,1760231440689,-500.0,0.00014974,2]
[390953631,1760231440698,-150.0,0.00014974,2]
[390953633,1760231440707,-2125.0,0.00014981,2]
[390953635,1760231440716,-195.19567061,0.00014986,2]
[390953637,1760231440725,-208.99344144,0.00014986,2]
[390953639,1760231440734,-318.09403821,0.00014986,2]
[390953641,1760231440743,-560.32566362,0.00014986,2]
[390953643,1760231440752,-273960.40339182,0.00014987,2]
[390953645,1760231440761,-168.0,0.00014998,2]
[390953647,1760231440770,-19282.8215473,0.00014998,2]
[390953649,1760231440779,-17842.9550147,0.00014998,2]
[390953651,1760231440788,-163.860056,0.00014998,2]
[390953653,1760231440797,-1897.6318696,0.00014998,2]
[390953655,1760231440805,-3204.0,0.00014999,2]
[390953657,1760231440814,-1648426.37334284,0.00014999,2]
[390953659,1760231440824,-500.0,0.00015,2]
[390953661,1760231440833,-782011.24863394,0.00015,2]
[390953665,1760231440858,-15175.06974318,0.00015,2]
[390953667,1760231440869,-155139.58414964,0.00015,2]
[390953672,1760231440908,-221169.89911131,0.00015,2]
[390953675,1760231440920,-3903.87127169,0.00015,2]
[390953677,1760231440931,-612.84390852,0.00015,2]
[390953679,1760231440942,-262.66014582,0.00015,2]
[390953681,1760231440952,-959.5326,0.00015,2]
[390953920,1760231443113,-335.41572376,0.00014825,2]
[390953922,1760231443123,-10704.80960358,0.00015,2]
[390953949,1760231443361,-451.644,0.00015,2]
[390954262,1760231446423,-2355.30294,0.00015,2]
[390954279,1760231446595,-6812.83399557,0.00015,2]
[390956024,1760231606941,500.0,0.00011986,2]
[390956025,1760231608489,500.0,0.00011986,2]
[390956041,1760231756950,5000.0,0.00012337,2]
[390956062,1760231867760,188.21,0.00011124,2]
[390956363,1760232633086,-160.56,0.00013543,2]
[390956364,1760232633095,-253.71281752,0.00013626,2]
[390956365,1760232633105,-600.45,0.0001371,2]
[390956366,1760232633115,-195.0,0.00013732,2]
[390956367,1760232633127,-1200.0,0.00013802,2]
[390956368,1760232633136,-150.0,0.00013802,2]
[390956369,1760232633145,-766.2343567,0.00013803,2]
[390956370,1760232633154,-505.77658896,0.00013803,3]
[390956371,1760232633192,-160.22341104,0.00013803,3]
[390956372,1760232633202,-324.27327818,0.00013803,2]
[390956373,1760232633213,-253.75974854,0.00013803,2]
[390956374,1760232633255,-11744.5213032,0.00013803,2]
[390956375,1760232633266,-17227.45567008,0.00013803,2]
[390956376,1760232633275,-1591.51,0.00013989,2]
[390956377,1760232633285,-200.0,0.00013999,2]
[390956378,1760232633294,-172.82,0.00014218,2]
[390956379,1760232633304,-500.0,0.00014248,2]
[390956380,1760232633314,-500.0,0.00014248,2]
[390956381,1760232633323,-500.0,0.00014248,2]
[390956382,1760232633332,-549.64687974,0.00014248,2]
[390956383,1760232633341,-1000.0,0.00014249,2]
[390956384,1760232633351,-1000.0,0.00014249,2]
[390956385,1760232633360,-151.0,0.00014249,2]
[390956386,1760232633371,-1000.0,0.00014249,2]
[390956387,1760232633381,-1000.0,0.00014249,2]
[390956388,1760232633390,-1000.0,0.00014249,2]
[390956389,1760232633400,-8882.6885148,0.00014249,2]
[390956390,1760232633409,-500.0,0.00014249,2]
[390956391,1760232633419,-578.20924308,0.00014249,2]
[390956392,1760232633428,-1000.0,0.00014249,2]
[390956393,1760232633437,-1000.0,0.00014249,2]
[390956394,1760232633447,-500.0,0.00014249,2]
[390956395,1760232633457,-1000.0,0.00014249,2]
[390956396,1760232633466,-1000.0,0.00014249,2]
[390956397,1760232633476,-500.0,0.00014249,2]
[390956398,1760232633486,-1000.0,0.00014249,2]
[390956399,1760232633495,-1000.0,0.00014249,2]
[390956400,1760232633504,-500.0,0.00014249,2]
[390956401,1760232633514,-1000.0,0.00014249,2]
[390956402,1760232633523,-500.0,0.00014249,2]
[390956403,1760232633533,-1000.0,0.00014249,2]
[390956404,1760232633542,-500.0,0.00014249,2]
[390956405,1760232633551,-1000.0,0.00014249,2]
[390956406,1760232633561,-500.0,0.00014249,2]
[390956407,1760232633570,-1000.0,0.00014249,2]
[390956408,1760232633579,-151.0,0.00014249,2]
[390956409,1760232633589,-500.0,0.00014249,2]
[390956410,1760232633598,-500.0,0.00014249,2]
[390956411,1760232633608,-1000.0,0.00014249,2]
[390956412,1760232633617,-500.0,0.00014249,2]
[390956413,1760232633628,-1000.0,0.00014249,2]
[390956414,1760232633637,-500.0,0.00014249,2]
[390956415,1760232633647,-500.0,0.00014249,2]
[390956416,1760232633656,-1000.0,0.00014249,2]
[390956417,1760232633665,-500.0,0.00014249,2]
[390956418,1760232633675,-151.0,0.00014249,2]
[390956419,1760232633684,-322.6107,0.00014249,2]
[390956420,1760232633693,-500.0,0.00014249,2]
[390956421,1760232633703,-1000.0,0.00014249,2]
[390956422,1760232633717,-479.17335335,0.00014249,2]
[390956423,1760232633726,-500.0,0.00014249,2]
[390956424,1760232633735,-1000.0,0.00014249,2]
[390956425,1760232633745,-500.0,0.00014249,2]
[390956426,1760232633755,-1000.0,0.00014249,2]
[390956427,1760232633764,-500.0,0.00014249,2]
[390956428,1760232633774,-1000.0,0.00014249,2]
[390956429,1760232633783,-500.0,0.00014249,2]
[390956430,1760232633792,-1000.0,0.00014249,2]
[390956431,1760232633802,-500.0,0.00014249,2]
[390956432,1760232633811,-940.65818418,0.00014249,2]